fUST/lending_fUST_20251206
["ID","MTS","AMOUNT","RATE_DAILY","PERIOD"]
[396424093,1764964292926,-875.06,0.00017808,2]
[396424094,1764964292936,-500.0,0.00017808,2]
[396424095,1764964292945,-500.0,0.00017808,2]
[396424096,1764964292954,-1114.54,0.00017808,2]
[396424097,1764964292964,-500.0,0.00017808,2]
[396424098,1764964292973,-500.0,0.00017808,2]
[396424099,1764964292983,-500.0,0.00017808,2]
[396424100,1764964292992,-1202.31,0.00017808,2]
[396424101,1764964293005,-500.0,0.00017808,2]
[396424102,1764964293017,-1019.58,0.00017808,2]
[396424103,1764964293028,-1283.59,0.00017808,2]
[396424104,1764964293037,-500.0,0.00017808,2]
[396424105,1764964293047,-500.0,0.00017808,2]
[396424106,1764964293056,-1200.75,0.00017808,2]
[396424107,1764964293066,-500.0,0.00017808,2]
[396424108,1764964293075,-506.37,0.00017808,2]
[396424109,1764964293084,-500.0,0.00017808,2]
[396424110,1764964293094,-500.0,0.00017808,2]
[396424111,1764964293103,-1231.58,0.00017808,2]
[396424112,1764964293112,-506.68,0.00017808,2]
[396424113,1764964293122,-654.39,0.00017808,2]
[396424114,1764964293131,-500.0,0.00017808,2]
[396424115,1764964293141,-500.0,0.00017808,2]
[396424116,1764964293150,-500.0,0.00017808,2]
[396424117,1764964293158,-1113.91,0.00017808,2]
[396424118,1764964293168,-663.62,0.00017808,2]
[396424119,1764964293177,-753.47,0.00017808,2]
[396424120,1764964293186,-1445.18,0.00017808,2]
[396424121,1764964293195,-500.0,0.00017808,2]
[396424122,1764964293205,-640.68762741,0.00017808,2]
[396424123,1764964293216,-500.0,0.00017808,2]
[396424124,1764964293225,-500.0,0.00017808,2]
[396424125,1764964293235,-780.5,0.00017808,2]
[396424126,1764964293246,-889.08,0.00017808,2]
[396424127,1764964293257,-500.0,0.00017808,2]
[396424128,1764964293267,-2835.2,0.00017808,2]
[396424129,1764964293277,-500.0,0.00017808,2]
[396424130,1764964293286,-500.0,0.00017808,2]
[396424131,1764964293296,-500.0,0.00017808,2]
[396424132,1764964293305,-1729.46,0.00017808,2]
[396424133,1764964293315,-500.0,0.00017808,2]
[396424134,1764964293324,-1979.46,0.00017808,2]
[396424135,1764964293334,-575.86,0.00017808,2]
[396424136,1764964293343,-500.0,0.00017808,2]
[396424137,1764964293353,-1316.03,0.00017808,2]
[396424138,1764964293363,-1835.34,0.00017808,2]
[396424139,1764964293374,-500.0,0.00017808,2]
[396424140,1764964293383,-908.87,0.00017808,2]
[396424141,1764964293393,-653.14,0.00017808,2]
[396424142,1764964293404,-500.0,0.00017808,2]
[396424143,1764964293415,-557.4,0.00017808,2]
[396424144,1764964293425,-978.78,0.00017808,2]
[396424145,1764964293434,-500.0,0.00017808,2]
[396424146,1764964293444,-500.0,0.00017808,2]
[396424147,1764964293453,-1274.81,0.00017808,2]
[396424148,1764964293463,-500.0,0.00017808,2]
[396424149,1764964293476,-500.0,0.00017808,2]
[396424150,1764964293485,-500.0,0.00017808,2]
[396424151,1764964293496,-1825.48,0.00017808,2]
[396424152,1764964293507,-1459.61,0.00017808,2]
[396424153,1764964293518,-500.0,0.00017808,2]
[396424154,1764964293527,-500.0,0.00017808,2]
[396424155,1764964293537,-1362.88,0.00017808,2]
[396424156,1764964293549,-2330.6,0.00017808,2]
[396424157,1764964293559,-2129.96,0.00017808,2]
[396424158,1764964293569,-500.0,0.00017808,2]
[396424159,1764964293580,-500.0,0.00017808,2]
[396424160,1764964293591,-500.0,0.00017808,2]
[396424161,1764964293603,-664.95,0.00017808,2]
[396424162,1764964293614,-1189.18,0.00017808,2]
[396424163,1764964293625,-500.0,0.00017808,2]
[396424164,1764964293635,-625.01254605,0.00017808,2]
[396424165,1764964293645,-989.95,0.00017808,2]
[396424166,1764964293656,-1775.43,0.00017808,2]
[396424167,1764964293667,-1334.27,0.00017808,2]
[396424168,1764964293677,-500.0,0.00017808,2]
[396424169,1764964293687,-500.0,0.00017808,2]
[396424170,1764964293697,-500.0,0.00017808,2]
[396424171,1764964293707,-796.25,0.00017808,2]
[396424172,1764964293718,-500.0,0.00017808,2]
[396424173,1764964293728,-500.0,0.00017808,2]
[396424174,1764964293737,-243.60283679,0.00017808,2]
[396424175,1764964293747,-4147.96,0.00017808,2]
[396424176,1764964293757,-500.0,0.00017808,2]
[396424177,1764964293766,-500.0,0.00017808,2]
[396424178,1764964293776,-677.16,0.00017808,2]
[396424179,1764964293786,-3508.67,0.00017808,2]
[396424180,1764964293796,-3856.98,0.00017808,2]
[396424181,1764964293805,-1405.37,0.00017808,2]
[396424182,1764964293815,-500.0,0.00017808,2]
[396424183,1764964293824,-500.0,0.00017808,2]
[396424184,1764964293834,-8546.16,0.00017808,2]
[396424185,1764964293843,-595.52,0.00017808,2]
[396424186,1764964293853,-2012.27,0.00017808,2]
[396424187,1764964293863,-760.14,0.00017808,2]
[396424188,1764964293873,-500.0,0.00017808,2]
[396424189,1764964293884,-869.37,0.00017808,2]
[396424190,1764964293893,-2862.43,0.00017808,2]
[396424191,1764964293904,-500.0,0.00017808,2]
[396424192,1764964293913,-500.0,0.00017808,2]
[396424193,1764964293923,-1260.61,0.00017808,2]
[396424194,1764964293933,-27168.59,0.00017808,2]
[396424195,1764964293943,-2573.74,0.00017808,2]
[396424196,1764964293953,-500.0,0.00017808,2]
[396424197,1764964293962,-500.0,0.00017808,2]
[396424198,1764964293974,-1519.74,0.00017808,2]
[396424199,1764964293984,-3739.24,0.00017808,2]
[396424200,1764964293993,-837.97,0.00017808,2]
[396424201,1764964294006,-2210.97,0.00017808,2]
[396424202,1764964294016,-879.68,0.00017808,2]
[396424203,1764964294026,-934.83,0.00017808,2]
[396424204,1764964294036,-1534.0,0.00017808,2]
[396424205,1764964294047,-613.38,0.00017808,2]
[396424206,1764964294056,-1145.34,0.00017808,2]
[396424207,1764964294066,-7737.29,0.00017808,2]
[396424208,1764964294077,-2897.13,0.00017808,2]
[396424209,1764964294087,-2245.52,0.00017808,2]
[396424210,1764964294098,-3989.26,0.00017808,2]
[396424211,1764964294107,-1590.89,0.00017808,2]
[396424212,1764964294117,-4880.82,0.00017808,2]
[396424213,1764964294127,-500.0,0.00017808,2]
[396424214,1764964294137,-500.0,0.00017808,2]
[396424215,1764964294146,-2037.18,0.00017808,2]
[396424216,1764964294156,-500.0,0.00017808,2]
[396424217,1764964294166,-1939.29,0.00017808,2]
[396424218,1764964294176,-500.0,0.00017808,2]
[396424219,1764964294186,-500.0,0.00017808,2]
[396424220,1764964294197,-603.68,0.00017808,2]
[396424221,1764964294207,-500.0,0.00017808,2]
[396424222,1764964294217,-586.39,0.00017808,2]
[396424223,1764964294227,-500.0,0.00017808,2]
[396424224,1764964294238,-3745.52,0.00017808,2]
[396424225,1764964294247,-1761.7,0.00017808,2]
[396424226,1764964294257,-500.0,0.00017808,2]
[396424227,1764964294266,-500.0,0.00017808,2]
[396424228,1764964294276,-500.0,0.00017808,2]
[396424229,1764964294286,-500.0,0.00017808,2]
[396424230,1764964294296,-1154.72,0.00017808,2]
[396424231,1764964294307,-8082.89,0.00017808,2]
[396424232,1764964294316,-568.86812791,0.00017808,2]
[396424233,1764964294325,-808.12,0.00017808,2]
[396424234,1764964294335,-1316.55,0.00017808,2]
[396424235,1764964294345,-1061.67,0.00017808,2]
[396424236,1764964294355,-1179.67,0.00017808,2]
[396424237,1764964294365,-500.0,0.00017808,2]
[396424238,1764964294375,-500.0,0.00017808,2]
[396424239,1764964294385,-500.0,0.00017808,2]
[396424240,1764964294395,-548.83,0.00017808,2]
[396424241,1764964294405,-2735.13,0.00017808,2]
[396424242,1764964294415,-2878.01,0.00017808,2]
[396424243,1764964294425,-500.0,0.00017808,2]
[396424244,1764964294435,-500.0,0.00017808,2]
[396424245,1764964294445,-500.0,0.00017808,2]
[396424246,1764964294455,-6762.23,0.00017808,2]
[396424247,1764964294465,-1977.79,0.00017808,2]
[396424248,1764964294475,-500.0,0.00017808,2]
[396424249,1764964294485,-500.0,0.00017808,2]
[396424250,1764964294495,-512.63,0.00017808,2]
[396424251,1764964294506,-531.05,0.00017808,2]
[396424252,1764964294516,-183.40598876,0.00017808,2]
[396424253,1764964294526,-690.27,0.00017808,2]
[396424254,1764964294537,-588.28,0.00017808,2]
[396424255,1764964294547,-500.0,0.00017808,2]
[396424256,1764964294558,-500.0,0.00017808,2]
[396424257,1764964294567,-500.0,0.00017808,2]
[396424258,1764964294577,-1011.28,0.00017808,2]
[396424259,1764964294589,-6262.41,0.00017808,2]
[396424260,1764964294600,-500.0,0.00017808,2]
[396424261,1764964294610,-2046.2,0.00017808,2]
[396424262,1764964294620,-500.0,0.00017808,2]
[396424263,1764964294630,-2730.7,0.00017808,2]
[396424264,1764964294640,-776.59,0.00017808,2]
[396424265,1764964294650,-500.0,0.00017808,2]
[396424266,1764964294660,-632.99,0.00017808,2]
[396424267,1764964294669,-9293.72,0.00017808,2]
[396424268,1764964294679,-500.0,0.00017808,2]
[396424269,1764964294690,-500.0,0.00017808,2]
[396424270,1764964294699,-1523.9,0.00017808,2]
[396424271,1764964294710,-308.55461754,0.00017808,2]
[396424272,1764964294720,-2206.65,0.00017808,2]
[396424273,1764964294730,-1216.27,0.00017808,2]
[396424274,1764964294739,-890.47,0.00017808,2]
[396424275,1764964294749,-1517.87,0.00017808,2]
[396424276,1764964294760,-500.0,0.00017808,2]
[396424277,1764964294770,-500.0,0.00017808,2]
[396424278,1764964294780,-678.08,0.00017808,2]
[396424279,1764964294790,-12607.12,0.00017808,2]
[396424280,1764964294800,-1261.52,0.00017808,2]
[396424281,1764964294810,-3411.98,0.00017808,2]
[396424282,1764964294820,-500.0,0.00017808,2]
[396424283,1764964294830,-8433.96,0.00017808,2]
[396424284,1764964294840,-500.0,0.00017808,2]
[396424285,1764964294849,-4594.16,0.00017808,2]
[396424286,1764964294859,-639.2,0.00017808,2]
[396424287,1764964294869,-601.94,0.00017808,2]
[396424288,1764964294878,-500.0,0.00017808,2]
[396424289,1764964294888,-557.9,0.00017808,2]
[396424290,1764964294897,-768.56,0.00017808,2]
[396424291,1764964294908,-564.07,0.00017808,2]
[396424292,1764964294917,-2955.98,0.00017808,2]
[396424293,1764964294927,-1537.53,0.00017808,2]
[396424294,1764964294937,-1822.27,0.00017808,2]
[396424295,1764964294947,-454.96135473,0.00017808,2]
[396424296,1764964294956,-500.0,0.00017808,2]
[396424297,1764964294967,-500.0,0.00017808,2]
[396424298,1764964294977,-1145.09,0.00017808,2]
[396424299,1764964294987,-1807.2,0.00017808,2]
[396424300,1764964294996,-3671.84,0.00017808,2]
[396424301,1764964295009,-500.0,0.00017808,2]
[396424302,1764964295020,-1517.42,0.00017808,2]
[396424303,1764964295029,-1021.51,0.00017808,2]
[396424304,1764964295039,-500.0,0.00017808,2]
[396424305,1764964295049,-500.0,0.00017808,2]
[396424306,1764964295059,-1718.3,0.00017808,2]
[396424307,1764964295069,-15606.7,0.00017808,2]
[396424308,1764964295079,-500.0,0.00017808,2]
[396424309,1764964295090,-7505.89,0.00017808,2]
[396424310,1764964295102,-629.93,0.00017808,2]
[396424311,1764964295114,-500.0,0.00017808,2]
[396424312,1764964295125,-500.0,0.00017808,2]
[396424313,1764964295134,-4537.01,0.00017808,2]
[396424314,1764964295145,-500.0,0.00017808,2]
[396424315,1764964295154,-500.0,0.00017808,2]
[396424316,1764964295164,-1340.59,0.00017808,2]
[396424317,1764964295173,-1160.08,0.00017808,2]
[396424318,1764964295183,-560.95902865,0.00017808,2]
[396424319,1764964295193,-6149.82,0.00017808,2]
[396424320,1764964295203,-2978.24,0.00017808,2]
[396424321,1764964295214,-500.0,0.00017808,2]
[396424322,1764964295224,-566.43,0.00017808,2]
[396424323,1764964295234,-500.0,0.00017808,2]
[396424324,1764964295244,-1483.55,0.00017808,2]
[396424325,1764964295253,-2769.97,0.00017808,2]
[396424326,1764964295263,-1249.37,0.00017808,2]
[396424327,1764964295272,-500.0,0.00017808,2]
[396424328,1764964295282,-500.0,0.00017808,2]
[396424329,1764964295291,-603.32,0.00017808,2]
[396424330,1764964295301,-500.0,0.00017808,2]
[396424331,1764964295311,-411.91757057,0.00017808,2]
[396424332,1764964295321,-1573.31,0.00017808,2]
[396424333,1764964295331,-2626.61,0.00017808,2]
[396424334,1764964295341,-500.0,0.00017808,2]
[396424335,1764964295351,-5057.213907,0.00017808,2]
[396424336,1764964295360,-500.0,0.00017808,2]
[396424337,1764964295370,-4802.09,0.00017808,2]
[396424338,1764964295379,-443.39599514,0.00017808,2]
[396424339,1764964295390,-500.0,0.00017808,2]
[396424340,1764964295400,-999.44,0.00017808,2]
[396424341,1764964295410,-1503.75,0.00017808,2]
[396424342,1764964295420,-19450.21,0.00017808,2]
[396424343,1764964295429,-500.0,0.00017808,2]
[396424344,1764964295439,-500.0,0.00017808,2]
[396424345,1764964295449,-1075.02,0.00017808,2]
[396424346,1764964295458,-500.0,0.00017808,2]
[396424347,1764964295468,-500.0,0.00017808,2]
[396424348,1764964295477,-1106.6,0.00017808,2]
[396424349,1764964295487,-500.0,0.00017808,2]
[396424350,1764964295496,-840.72,0.00017808,2]
[396424351,1764964295506,-500.0,0.00017808,2]
[396424352,1764964295516,-1613.52,0.00017808,2]
[396424353,1764964295525,-500.0,0.00017808,2]
[396424354,1764964295535,-500.0,0.00017808,2]
[396424355,1764964295544,-518.4,0.00017808,2]
[396424356,1764964295554,-500.0,0.00017808,2]
[396424357,1764964295564,-3055.31,0.00017808,2]
[396424358,1764964295574,-994.67,0.00017808,2]
[396424359,1764964295584,-500.0,0.00017808,2]
[396424360,1764964295594,-500.0,0.00017808,2]
[396424361,1764964295603,-994.61,0.00017808,2]
[396424362,1764964295828,-5779.12,0.00017808,2]
[396424363,1764964295840,-500.0,0.00017808,2]
[396424364,1764964295850,-541.54,0.00017808,2]
[396424365,1764964295859,-500.0,0.00017808,2]
[396424366,1764964295869,-2703.83,0.00017808,2]
[396424367,1764964295878,-13490.98,0.00017808,2]
[396424368,1764964295887,-723.64,0.00017808,2]
[396424369,1764964295897,-2375.57,0.00017808,2]
[396424370,1764964295907,-500.0,0.00017808,2]
[396424371,1764964295917,-1855.42,0.00017808,2]
[396424372,1764964295929,-1108.58,0.00017808,2]
[396424373,1764964295939,-981.84,0.00017808,2]
[396424374,1764964295948,-500.0,0.00017808,2]
[396424375,1764964295957,-552.37953613,0.00017808,2]
[396424376,1764964295966,-500.0,0.00017808,2]
[396424377,1764964295976,-8333.33,0.00017808,2]
[396424378,1764964295986,-505.07,0.00017808,2]
[396424379,1764964295996,-3168.21,0.00017808,2]
[396424380,1764964296009,-8522.94,0.00017808,2]
[396424381,1764964296019,-500.0,0.00017808,2]
[396424382,1764964296029,-2974.3,0.00017808,2]
[396424383,1764964296039,-882.76,0.00017808,2]
[396424384,1764964296050,-171.48,0.00017808,2]
[396424385,1764964296059,-773.39,0.00017808,2]
[396424386,1764964296069,-500.0,0.00017808,2]
[396424387,1764964296078,-500.0,0.00017808,2]
[396424388,1764964296090,-500.0,0.00017808,2]
[396424389,1764964296100,-500.0,0.00017808,2]
[396424390,1764964296110,-500.0,0.00017808,2]
[396424391,1764964296119,-1466.62,0.00017808,2]
[396424392,1764964296129,-562.13540309,0.00017808,2]
[396424393,1764964296138,-500.0,0.00017808,2]
[396424394,1764964296147,-1900.64,0.00017808,2]
[396424395,1764964296160,-5166.32,0.00017808,2]
[396424396,1764964296169,-500.0,0.00017808,2]
[396424397,1764964296178,-559.78,0.00017808,2]
[396424398,1764964296188,-500.0,0.00017808,2]
[396424399,1764964296197,-500.0,0.00017808,2]
[396424400,1764964296207,-579.43,0.00017808,2]
[396424401,1764964296216,-1126.56,0.00017808,2]
[396424402,1764964296226,-531.72,0.00017808,2]
[396424403,1764964296235,-291.85473349,0.00017808,2]
[396424404,1764964296245,-1357.94,0.00017808,2]
[396424405,1764964296255,-7493.2,0.00017808,2]
[396424406,1764964296265,-500.0,0.00017808,2]
[396424407,1764964296274,-500.0,0.00017808,2]
[396424408,1764964296284,-2140.67,0.00017808,2]
[396424409,1764964296295,-504.84,0.00017808,2]
[396424410,1764964296305,-203.04971984,0.00017808,2]
[396424411,1764964296315,-1456.29,0.00017808,2]
[396424412,1764964296325,-1852.77,0.00017808,2]
[396424413,1764964296335,-5290.3,0.00017808,2]
[396424414,1764964296345,-500.0,0.00017808,2]
[396424415,1764964296355,-18021.5,0.00017808,2]
[396424416,1764964296364,-5946.49,0.00017808,2]
[396424417,1764964296373,-594.69484937,0.00017808,2]
[396424418,1764964296384,-1141.14,0.00017808,2]
[396424419,1764964296395,-500.0,0.00017808,2]
[396424420,1764964296406,-5755.4,0.00017808,2]
[396424421,1764964296416,-500.0,0.00017808,2]
[396424422,1764964296426,-899.33,0.00017808,2]
[396424423,1764964296435,-500.0,0.00017808,2]
[396424424,1764964296446,-500.0,0.00017808,2]
[396424425,1764964296456,-500.0,0.00017808,2]
[396424426,1764964296467,-500.0,0.00017808,2]
[396424427,1764964296478,-1193.75,0.00017808,2]
[396424428,1764964296487,-500.0,0.00017808,2]
[396424429,1764964296497,-626.45643762,0.00017808,2]
[396424430,1764964296507,-500.0,0.00017808,2]
[396424431,1764964296516,-18224.67,0.00017808,2]
[396424432,1764964296528,-2555.22,0.00017808,2]
[396424433,1764964296539,-500.0,0.00017808,2]
[396424434,1764964296548,-500.0,0.00017808,2]
[396424435,1764964296558,-15992.22,0.00017808,2]
[396424436,1764964296567,-500.0,0.00017808,2]
[396424437,1764964296576,-500.0,0.00017808,2]
[396424438,1764964296585,-2246.86,0.00017808,2]
[396424439,1764964296595,-500.0,0.00017808,2]
[396424440,1764964296604,-500.0,0.00017808,2]
[396424441,1764964296613,-500.0,0.00017808,2]
[396424442,1764964296623,-1396.97,0.00017808,2]
[396424443,1764964296633,-699.92,0.00017808,2]
[396424444,1764964296642,-1327.48,0.00017808,2]
[396424445,1764964296651,-3223.39,0.00017808,2]
[396424446,1764964296661,-1347.5,0.00017808,2]
[396424447,1764964296670,-2513.49,0.00017808,2]
[396424448,1764964296679,-667.1,0.00017808,2]
[396424449,1764964296688,-500.0,0.00017808,2]
[396424450,1764964296698,-500.0,0.00017808,2]
[396424451,1764964296707,-500.0,0.00017808,2]
[396424452,1764964296717,-2175.03,0.00017808,2]
[396424453,1764964296726,-40156.73,0.00017808,2]
[396424454,1764964296736,-906.92,0.00017808,2]
[396424455,1764964296746,-500.0,0.00017808,2]
[396424456,1764964296756,-10167.34,0.00017808,2]
[396424457,1764964296765,-3602.82,0.00017808,2]
[396424458,1764964296775,-690.39,0.00017808,2]
[396424459,1764964296784,-871.12,0.00017808,2]
[396424460,1764964296794,-570.25,0.00017808,2]
[396424461,1764964296803,-3182.83,0.00017808,2]
[396424462,1764964296813,-252.469602,0.00017808,2]
[396424463,1764964296822,-500.0,0.00017808,2]
[396424464,1764964296831,-500.0,0.00017808,2]
[396424465,1764964296841,-2410.62,0.00017808,2]
[396424466,1764964296850,-500.0,0.00017808,2]
[396424467,1764964296859,-500.0,0.00017808,2]
[396424468,1764964296868,-2260.75,0.00017808,2]
[396424469,1764964296877,-1031.43,0.00017808,2]
[396424470,1764964296886,-500.0,0.00017808,2]
[396424471,1764964296896,-500.0,0.00017808,2]
[396424472,1764964296905,-1240.63,0.00017808,2]
[396424473,1764964296914,-500.0,0.00017808,2]
[396424474,1764964296923,-3147.39,0.00017808,2]
[396424475,1764964296932,-637.94301816,0.00017808,2]
[396424476,1764964296942,-535.52,0.00017808,2]
[396424477,1764964296951,-3754.05,0.00017808,2]
[396424478,1764964296960,-2393.17,0.00017808,2]
[396424479,1764964296969,-640.85,0.00017808,2]
[396424480,1764964296979,-700.33,0.00017808,2]
[396424481,1764964296988,-2634.96,0.00017808,2]
[396424482,1764964296997,-500.0,0.00017808,2]
[396424483,1764964297012,-3889.17,0.00017808,2]
[396424484,1764964297021,-500.0,0.00017808,2]
[396424485,1764964297031,-500.0,0.00017808,2]
[396424486,1764964297040,-786.42,0.00017808,2]
[396424487,1764964297050,-500.0,0.00017808,2]
[396424488,1764964297059,-500.0,0.00017808,2]
[396424489,1764964297069,-1453.14,0.00017808,2]
[396424490,1764964297079,-500.0,0.00017808,2]
[396424491,1764964297090,-2259.44,0.00017808,2]
[396424492,1764964297100,-642.0,0.00017808,2]
[396424493,1764964297109,-500.0,0.00017808,2]
[396424494,1764964297119,-556.78766322,0.00017808,2]
[396424495,1764964297128,-7930.82,0.00017808,2]
[396424496,1764964297138,-500.0,0.00017808,2]
[396424497,1764964297148,-555.40455946,0.00017843,2]
[396424498,1764964297157,-500.0,0.0001786,2]
[396424499,1764964297167,-160.0,0.00018,2]
[396424500,1764964297179,-500.0,0.00018082,2]
[396424501,1764964297190,-500.0,0.00018082,2]
[396424502,1764964297200,-500.0,0.00018082,2]
[396424503,1764964297210,-500.0,0.00018082,2]
[396424504,1764964297220,-500.0,0.00018082,2]
[396424505,1764964297230,-500.0,0.00018082,2]
[396424506,1764964297240,-500.0,0.00018082,2]
[396424507,1764964297249,-460.82014122,0.00018082,2]
[396424508,1764964297259,-500.0,0.00018082,2]
[396424509,1764964297269,-500.0,0.00018082,2]
[396424510,1764964297279,-674.84,0.00018082,2]
[396424511,1764964297288,-759.28,0.00018082,2]
[396424512,1764964297297,-500.0,0.00018082,2]
[396424513,1764964297306,-821.01,0.00018082,2]
[396424514,1764964297315,-3248.83,0.00018082,2]
[396424515,1764964297325,-500.0,0.00018082,2]
[396424516,1764964297335,-500.0,0.00018082,2]
[396424517,1764964297344,-596.14,0.00018082,2]
[396424518,1764964297355,-766.62,0.00018082,2]
[396424519,1764964297364,-677.48,0.00018082,2]
[396424520,1764964297373,-500.0,0.00018082,2]
[396424521,1764964297384,-710.03,0.00018082,2]
[396424522,1764964297394,-500.0,0.00018082,2]
[396424523,1764964297404,-978.11,0.00018082,2]
[396424524,1764964297414,-500.0,0.00018082,2]
[396424525,1764964297424,-950.77,0.00018082,2]
[396424526,1764964297434,-2195.96,0.00018082,2]
[396424527,1764964297443,-500.0,0.00018082,2]
[396424528,1764964297452,-500.0,0.00018082,2]
[396424529,1764964297462,-831.34,0.00018082,2]
[396424530,1764964297471,-500.0,0.00018082,2]
[396424531,1764964297481,-609.85,0.00018082,2]
[396424532,1764964297491,-500.0,0.00018082,2]
[396424533,1764964297500,-1164.68,0.00018082,2]
[396424534,1764964297509,-500.0,0.00018082,2]
[396424535,1764964297519,-500.0,0.00018082,2]
[396424536,1764964297528,-768.78,0.00018082,2]
[396424537,1764964297538,-609.15,0.00018082,2]
[396424538,1764964297547,-500.0,0.00018082,2]
[396424539,1764964297556,-1330.04,0.00018082,2]
[396424540,1764964297566,-913.97,0.00018082,2]
[396424541,1764964297575,-500.0,0.00018082,2]
[396424542,1764964297584,-500.0,0.00018082,2]
[396424543,1764964297594,-500.0,0.00018082,2]
[396424544,1764964297603,-738.1,0.00018082,2]
[396424545,1764964297612,-500.0,0.00018082,2]
[396424546,1764964297621,-1071.4,0.00018082,2]
[396424547,1764964297630,-1543.99,0.00018082,2]
[396424548,1764964297639,-1862.41,0.00018082,2]
[396424549,1764964297648,-500.0,0.00018082,2]
[396424550,1764964297658,-500.0,0.00018082,2]
[396424551,1764964297668,-500.0,0.00018082,2]
[396424552,1764964297677,-939.06,0.00018082,2]
[396424553,1764964297687,-1733.31,0.00018082,2]
[396424554,1764964297696,-2719.16,0.00018082,2]
[396424555,1764964297705,-826.15,0.00018082,2]
[396424556,1764964297714,-500.0,0.00018082,2]
[396424557,1764964297723,-500.0,0.00018082,2]
[396424558,1764964297733,-1078.39,0.00018082,2]
[396424559,1764964297742,-708.58,0.00018082,2]
[396424560,1764964297752,-1771.78,0.00018082,2]
[396424561,1764964297761,-500.0,0.00018082,2]
[396424562,1764964297771,-500.0,0.00018082,2]
[396424563,1764964297780,-500.0,0.00018082,2]
[396424564,1764964297789,-500.0,0.00018082,2]
[396424565,1764964297798,-500.0,0.00018082,2]
[396424566,1764964297807,-500.0,0.00018082,2]
[396424567,1764964297817,-672.42,0.00018082,2]
[396424568,1764964297826,-874.07,0.00018082,2]
[396424569,1764964297836,-500.0,0.00018082,2]
[396424570,1764964297846,-222.86149486,0.00018082,2]
[396424571,1764964297857,-611.92,0.00018082,2]
[396424572,1764964297867,-2821.54,0.00018082,2]
[396424573,1764964297878,-500.0,0.00018082,2]
[396424574,1764964297889,-500.0,0.00018082,2]
[396424575,1764964297902,-389.6193151,0.00018082,2]
[396424576,1764964297914,-500.0,0.00018082,2]
[396424577,1764964297927,-500.0,0.00018082,2]
[396424578,1764964297944,-636.11,0.00018082,2]
[396424579,1764964297955,-971.51,0.00018082,2]
[396424580,1764964297967,-906.08,0.00018082,2]
[396424581,1764964297981,-500.0,0.00018082,2]
[396424582,1764964297992,-571.85,0.00018082,2]
[396424583,1764964298003,-500.0,0.00018082,2]
[396424584,1764964298017,-1069.86,0.00018082,2]
[396424585,1764964298027,-500.0,0.00018082,2]
[396424586,1764964298037,-1462.76,0.00018082,2]
[396424587,1764964298048,-502.82,0.00018082,2]
[396424588,1764964298057,-500.0,0.00018082,2]
[396424589,1764964298067,-500.0,0.00018082,2]
[396424590,1764964298078,-2534.3,0.00018082,2]
[396424591,1764964298088,-500.0,0.00018082,2]
[396424592,1764964298098,-500.0,0.00018082,2]